fUST/lending_fUST_20250821
["ID","MTS","AMOUNT","RATE_DAILY","PERIOD"]
[380477048,1755789056634,-480.0,0.00022465,3]
[380477049,1755789056643,-480.0,0.00022465,3]
[380477050,1755789056652,-3325.88,0.00022465,3]
[380477051,1755789056661,-540.06909517,0.00022465,3]
[380477052,1755789056670,-1928.42,0.00022465,3]
[380477053,1755789056680,-5464.66,0.00022465,3]
[380477054,1755789056689,-480.0,0.00022465,3]
[380477055,1755789056698,-175.84362596,0.00022465,3]
[380477056,1755789056707,-480.0,0.00022465,3]
[380477057,1755789056717,-480.0,0.00022465,3]
[380477058,1755789056725,-480.0,0.00022465,3]
[380477059,1755789056735,-480.0,0.00022465,3]
[380477060,1755789056746,-14424.21,0.00022465,3]
[380477061,1755789056755,-480.0,0.00022465,3]
[380477062,1755789056765,-480.0,0.00022465,3]
[380477063,1755789056775,-1177.23,0.00022465,3]
[380477064,1755789056784,-480.0,0.00022465,3]
[380477065,1755789056794,-769.08,0.00022465,3]
[380477066,1755789056803,-465.26123143,0.00022465,3]
[380477067,1755789056812,-587.76,0.00022465,3]
[380477068,1755789056821,-4935.04,0.00022465,3]
[380477069,1755789056831,-480.0,0.00022465,3]
[380477070,1755789056840,-1184.81,0.00022465,3]
[380477071,1755789056849,-2603.06,0.00022465,3]
[380477072,1755789056858,-480.0,0.00022465,3]
[380477073,1755789056868,-561.71,0.00022465,3]
[380477074,1755789056877,-460.0,0.00022465,3]
[380477075,1755789056886,-480.0,0.00022465,3]
[380477076,1755789056895,-480.0,0.00022465,3]
[380477077,1755789057030,-1024.11,0.00022465,3]
[380477078,1755789057041,-480.0,0.00022465,3]
[380477079,1755789057050,-6832.83,0.00022465,3]
[380477080,1755789057060,-480.0,0.00022465,3]
[380477081,1755789057069,-480.0,0.00022465,3]
[380477082,1755789057079,-9670.29,0.00022465,3]
[380477083,1755789057089,-480.0,0.00022465,3]
[380477084,1755789057099,-480.0,0.00022465,3]
[380477085,1755789057108,-2069.39,0.00022465,3]
[380477086,1755789057118,-564.67,0.00022465,3]
[380477087,1755789057127,-480.0,0.00022465,3]
[380477088,1755789057136,-480.0,0.00022465,3]
[380477089,1755789057146,-1912.91,0.00022465,3]
[380477090,1755789057155,-480.0,0.00022465,3]
[380477091,1755789057165,-4899.41,0.00022465,3]
[380477092,1755789057174,-964.21,0.00022465,3]
[380477093,1755789057183,-2638.48,0.00022465,3]
[380477094,1755789057192,-480.0,0.00022465,3]
[380477095,1755789057202,-1162.1,0.00022465,3]
[380477096,1755789057211,-739.44,0.00022465,3]
[380477097,1755789057221,-837.52,0.00022465,3]
[380477098,1755789057231,-754.79,0.00022465,3]
[380477099,1755789057242,-480.0,0.00022465,3]
[380477100,1755789057251,-497.84,0.00022465,3]
[380477101,1755789057262,-480.0,0.00022465,3]
[380477102,1755789057273,-1202.36,0.00022465,3]
[380477103,1755789057283,-611.41,0.00022465,3]
[380477104,1755789057293,-656.61,0.00022465,3]
[380477105,1755789057303,-10927.7,0.00022465,3]
[380477106,1755789057312,-2945.46,0.00022465,3]
[380477107,1755789057322,-480.0,0.00022465,3]
[380477108,1755789057331,-507.72,0.00022465,3]
[380477109,1755789057341,-589.79,0.00022465,3]
[380477110,1755789057351,-870.09,0.00022465,3]
[380477111,1755789057361,-624.04,0.00022465,3]
[380477112,1755789057371,-480.0,0.00022465,3]
[380477113,1755789057380,-579.45,0.00022465,3]
[380477114,1755789057390,-1355.28,0.00022465,3]
[380477115,1755789057400,-1014.59,0.00022465,3]
[380477116,1755789057409,-480.0,0.00022465,3]
[380477117,1755789057420,-606.37,0.00022465,3]
[380477118,1755789057430,-480.0,0.00022465,3]
[380477119,1755789057440,-864.73,0.00022465,3]
[380477120,1755789057450,-794.55,0.00022465,3]
[380477121,1755789057459,-480.0,0.00022465,3]
[380477122,1755789057469,-480.0,0.00022465,3]
[380477123,1755789057479,-1939.23,0.00022465,3]
[380477124,1755789057489,-525.16,0.00022465,3]
[380477125,1755789057499,-480.0,0.00022465,3]
[380477126,1755789057508,-1137.21,0.00022465,3]
[380477127,1755789057518,-480.0,0.00022465,3]
[380477128,1755789057527,-480.0,0.00022465,3]
[380477129,1755789057536,-10271.99,0.00022465,3]
[380477130,1755789057546,-480.0,0.00022465,3]
[380477131,1755789057556,-719.61,0.00022465,3]
[380477132,1755789057565,-2157.07,0.00022465,3]
[380477133,1755789057575,-1447.74,0.00022465,3]
[380477134,1755789057585,-7022.46,0.00022465,3]
[380477135,1755789057595,-480.0,0.00022465,3]
[380477136,1755789057604,-695.56,0.00022465,3]
[380477137,1755789057614,-480.0,0.00022465,3]
[380477138,1755789057624,-428.13952706,0.00022465,3]
[380477139,1755789057633,-1854.76,0.00022465,3]
[380477140,1755789057643,-1788.7,0.00022465,3]
[380477141,1755789057652,-584.71,0.00022465,3]
[380477142,1755789057663,-1526.4,0.00022465,3]
[380477143,1755789057672,-480.0,0.00022465,3]
[380477144,1755789057682,-409.12539468,0.00022465,3]
[380477145,1755789057691,-480.0,0.00022465,3]
[380477146,1755789057700,-480.0,0.00022465,3]
[380477147,1755789057710,-1856.57,0.00022465,3]
[380477148,1755789057719,-506.49,0.00022465,3]
[380477149,1755789057729,-480.0,0.00022465,3]
[380477150,1755789057739,-1511.68,0.00022465,3]
[380477151,1755789057748,-1142.51,0.00022465,3]
[380477152,1755789057758,-480.0,0.00022465,3]
[380477153,1755789057767,-702.31,0.00022465,3]
[380477154,1755789057776,-480.0,0.00022465,3]
[380477155,1755789057786,-480.0,0.00022465,3]
[380477156,1755789057795,-594.14,0.00022465,3]
[380477157,1755789057805,-2638.84,0.00022465,3]
[380477158,1755789057814,-480.0,0.00022465,3]
[380477159,1755789057824,-3025.78,0.00022465,3]
[380477160,1755789057833,-1133.26,0.00022465,3]
[380477161,1755789057843,-556.31,0.00022465,3]
[380477162,1755789057852,-1919.83,0.00022465,3]
[380477163,1755789057862,-960.8,0.00022465,3]
[380477164,1755789057871,-582.14,0.00022465,3]
[380477165,1755789057883,-480.0,0.00022465,3]
[380477166,1755789057892,-1528.09,0.00022465,3]
[380477167,1755789057902,-2818.16,0.00022465,3]
[380477168,1755789057911,-480.0,0.00022465,3]
[380477169,1755789057920,-1031.71,0.00022465,3]
[380477170,1755789057929,-4267.79,0.00022465,3]
[380477171,1755789057939,-7361.83,0.00022465,3]
[380477172,1755789057948,-300.0,0.00022465,3]
[380477173,1755789057957,-2447.45,0.00022465,3]
[380477174,1755789057967,-56.25417745,0.00022465,3]
[380477175,1755789058212,-15759.53582255,0.00022465,3]
[380477176,1755789058222,-480.0,0.00022465,3]
[380477177,1755789058231,-2960.58,0.00022465,3]
[380477178,1755789058240,-480.0,0.00022465,3]
[380477179,1755789058250,-3234.19,0.00022465,3]
[380477180,1755789058262,-480.0,0.00022465,3]
[380477181,1755789058272,-2132.58,0.00022465,3]
[380477182,1755789058282,-5243.78,0.00022465,3]
[380477183,1755789058291,-480.0,0.00022465,3]
[380477184,1755789058302,-1499.06,0.00022465,3]
[380477185,1755789058312,-1205.34,0.00022465,3]
[380477186,1755789058321,-480.0,0.00022465,3]
[380477187,1755789058331,-480.0,0.00022465,3]
[380477188,1755789058345,-4424.32,0.00022465,3]
[380477189,1755789058355,-5276.46,0.00022465,3]
[380477190,1755789058365,-480.0,0.00022465,3]
[380477191,1755789058374,-480.0,0.00022465,3]
[380477192,1755789058383,-480.0,0.00022465,3]
[380477193,1755789058392,-480.0,0.00022465,3]
[380477194,1755789058402,-160.0,0.0002247,3]
[380477195,1755789058412,-507.73976705,0.00022473,2]
[380477196,1755789058421,-504.2643275,0.00022473,2]
[380477197,1755789058431,-502.93797055,0.00022473,2]
[380477198,1755789058440,-500.0,0.00022473,2]
[380477199,1755789058450,-500.0,0.00022473,2]
[380477200,1755789058460,-506.64048263,0.00022473,2]
[380477201,1755789058469,-500.0,0.00022473,2]
[380477202,1755789058479,-500.0,0.00022473,2]
[380477203,1755789058489,-500.0,0.00022473,2]
[380477204,1755789058498,-3902.95,0.000225,7]
[380477205,1755789058508,-7125.33,0.000225,7]
[380477206,1755789058517,-332.77917563,0.00022521,2]
[380477207,1755789058528,-936.09190007,0.00022521,2]
[380477208,1755789058538,-1000.0,0.00022521,2]
[380477209,1755789058547,-1000.0,0.00022521,2]
[380477210,1755789058558,-1000.0,0.00022521,2]
[380477211,1755789058567,-1000.0,0.00022521,2]
[380477212,1755789058577,-1000.0,0.00022521,2]
[380477213,1755789058587,-1431.60928477,0.00022564,2]
[380477214,1755789058596,-255.028781,0.00022588,10]
[380477215,1755789058606,-151.0,0.00022595,2]
[380477216,1755789058615,-419.0,0.00022639,3]
[380477217,1755789058625,-4697.92316511,0.00022639,2]
[380477218,1755789058634,-2200.0,0.00022655,2]
[380477219,1755789058644,-160.0,0.00022661,2]
[380477220,1755789058653,-1665.99957301,0.00022714,2]
[380477221,1755789058663,-1000.0,0.00022721,2]
[380477222,1755789058673,-1012.74954049,0.00022721,2]
[380477223,1755789058682,-1000.0,0.00022721,2]
[380477224,1755789058691,-1000.0,0.00022721,2]
[380477225,1755789058700,-1008.5544865,0.00022721,2]
[380477226,1755789058709,-1000.0,0.00022721,2]
[380477227,1755789058718,-1000.0,0.00022721,2]
[380477228,1755789058728,-1000.0,0.00022721,2]
[380477229,1755789058737,-180.63980109,0.00022738,2]
[380477230,1755789058748,-151.0,0.00022738,2]
[380477231,1755789058758,-817.52,0.00022739,3]
[380477232,1755789058768,-480.0,0.00022739,3]
[380477233,1755789058777,-702.92,0.00022739,3]
[380477234,1755789058787,-480.0,0.00022739,3]
[380477235,1755789058796,-671.78,0.00022739,3]
[380477236,1755789058805,-480.0,0.00022739,3]
[380477237,1755789058815,-480.0,0.00022739,3]
[380477238,1755789058824,-480.0,0.00022739,3]
[380477239,1755789058833,-480.0,0.00022739,3]
[380477240,1755789058843,-1701.76,0.00022739,3]
[380477241,1755789058852,-933.41,0.00022739,3]
[380477242,1755789058862,-1374.91,0.00022739,3]
[380477243,1755789058871,-480.0,0.00022739,3]
[380477244,1755789058880,-1127.93,0.00022739,3]
[380477245,1755789058890,-480.0,0.00022739,3]
[380477246,1755789058899,-480.0,0.00022739,3]
[380477247,1755789059030,-480.0,0.00022739,3]
[380477248,1755789059060,-480.0,0.00022739,3]
[380477249,1755789059071,-480.0,0.00022739,3]
[380477250,1755789059081,-480.0,0.00022739,3]
[380477251,1755789059090,-580.22,0.00022739,3]
[380477252,1755789059099,-480.0,0.00022739,3]
[380477253,1755789059109,-663.42,0.00022739,3]
[380477254,1755789059118,-480.0,0.00022739,3]
[380477255,1755789059128,-480.0,0.00022739,3]
[380477256,1755789059137,-480.0,0.00022739,3]
[380477257,1755789059147,-480.0,0.00022739,3]
[380477258,1755789059157,-480.0,0.00022739,3]
[380477259,1755789059166,-480.0,0.00022739,3]
[380477260,1755789059176,-480.0,0.00022739,3]
[380477261,1755789059185,-1369.71,0.00022739,3]
[380477262,1755789059194,-480.0,0.00022739,3]
[380477263,1755789059204,-480.0,0.00022739,3]
[380477264,1755789059213,-480.0,0.00022739,3]
[380477265,1755789059222,-480.0,0.00022739,3]
[380477266,1755789059232,-480.0,0.00022739,3]
[380477267,1755789059245,-480.0,0.00022739,3]
[380477268,1755789059255,-632.51,0.00022739,3]
[380477269,1755789059266,-480.0,0.00022739,3]
[380477270,1755789059276,-480.0,0.00022739,3]
[380477271,1755789059286,-480.0,0.00022739,3]
[380477272,1755789059295,-480.0,0.00022739,3]
[380477273,1755789059305,-1011.13,0.00022739,3]
[380477274,1755789059314,-480.0,0.00022739,3]
[380477275,1755789059323,-1139.78,0.00022739,2]
[380477276,1755789059333,-480.0,0.00022739,3]
[380477277,1755789059342,-404.11576306,0.00022739,3]
[380477278,1755789059353,-542.10159793,0.00022739,3]
[380477279,1755789059363,-495.8,0.00022739,3]
[380477280,1755789059373,-480.0,0.00022739,3]
[380477281,1755789059382,-481.31,0.00022739,3]
[380477282,1755789059391,-1469.14,0.00022739,3]
[380477283,1755789059401,-480.0,0.00022739,3]
[380477284,1755789059410,-480.0,0.00022739,3]
[380477285,1755789059419,-499.95,0.00022739,3]
[380477286,1755789059429,-480.0,0.00022739,3]
[380477287,1755789059438,-480.0,0.00022739,3]
[380477288,1755789059448,-480.0,0.00022739,3]
[380477289,1755789059457,-480.0,0.00022739,3]
[380477290,1755789059466,-561.79,0.00022739,3]
[380477291,1755789059476,-480.0,0.00022739,3]
[380477292,1755789059485,-480.0,0.00022739,3]
[380477293,1755789059497,-480.0,0.00022739,3]
[380477294,1755789059506,-480.0,0.00022739,3]
[380477295,1755789059516,-1749.13,0.00022739,3]
[380477296,1755789059526,-480.0,0.00022739,3]
[380477297,1755789059535,-480.0,0.00022739,3]
[380477298,1755789059545,-480.0,0.00022739,3]
[380477299,1755789059554,-480.0,0.00022739,3]
[380477300,1755789059563,-480.0,0.00022739,3]
[380477301,1755789059572,-480.0,0.00022739,3]
[380477302,1755789059582,-480.0,0.00022739,3]
[380477303,1755789059592,-480.0,0.00022739,3]
[380477304,1755789059602,-953.69,0.00022739,3]
[380477305,1755789059612,-480.0,0.00022739,3]
[380477306,1755789059621,-597.44,0.00022739,3]
[380477307,1755789059630,-480.0,0.00022739,3]
[380477308,1755789059640,-480.0,0.00022739,3]
[380477309,1755789059650,-480.0,0.00022739,3]
[380477310,1755789059659,-480.0,0.00022739,3]
[380477311,1755789059669,-480.0,0.00022739,3]
[380477312,1755789059678,-802.61,0.00022739,3]
[380477313,1755789059687,-480.0,0.00022739,3]
[380477314,1755789059696,-480.0,0.00022739,3]
[380477315,1755789059706,-168.81026602,0.00022739,3]
[380477316,1755789059715,-480.0,0.00022739,3]
[380477317,1755789059725,-860.79,0.00022739,3]
[380477318,1755789059734,-1163.51,0.00022739,3]
[380477319,1755789059745,-480.0,0.00022739,3]
[380477320,1755789059755,-480.0,0.00022739,3]
[380477321,1755789059765,-583.48,0.00022739,3]
[380477322,1755789059774,-480.0,0.00022739,3]
[380477323,1755789059784,-480.0,0.00022739,3]
[380477324,1755789059794,-480.0,0.00022739,3]
[380477325,1755789059803,-480.0,0.00022739,3]
[380477326,1755789059814,-480.0,0.00022739,3]
[380477327,1755789059824,-480.0,0.00022739,3]
[380477328,1755789059834,-480.0,0.00022739,3]
[380477329,1755789059843,-480.0,0.00022739,3]
[380477330,1755789059853,-2215.93,0.00022739,3]
[380477331,1755789059862,-509.13,0.00022739,3]
[380477332,1755789059872,-556.28,0.00022739,3]
[380477333,1755789059882,-480.0,0.00022739,3]
[380477334,1755789059891,-480.0,0.00022739,3]
[380477335,1755789059900,-1064.18,0.00022739,3]
[380477336,1755789059910,-1420.18,0.00022739,3]
[380477337,1755789059919,-480.0,0.00022739,3]
[380477338,1755789059929,-851.64,0.00022739,3]
[380477339,1755789059939,-1315.57,0.00022739,3]
[380477340,1755789059948,-2237.66,0.00022739,3]
[380477341,1755789059958,-480.0,0.00022739,3]
[380477342,1755789059967,-1026.9,0.00022739,3]
[380477343,1755789059976,-480.0,0.00022739,3]
[380477344,1755789059986,-516.96,0.00022739,3]
[380477345,1755789059997,-1339.8,0.00022739,3]
[380477346,1755789060006,-480.0,0.00022739,3]
[380477347,1755789060016,-865.06,0.00022739,3]
[380477348,1755789060025,-831.74,0.00022739,3]
[380477349,1755789060034,-649.01,0.00022739,3]
[380477350,1755789060044,-480.0,0.00022739,3]
[380477351,1755789060054,-480.0,0.00022739,3]
[380477352,1755789060064,-1485.54,0.00022739,3]
[380477353,1755789060074,-480.0,0.00022739,3]
[380477354,1755789060084,-480.0,0.00022739,3]
[380477355,1755789060106,-540.60349817,0.00022739,3]
[380477356,1755789060126,-273.00917935,0.00022739,3]
[380477357,1755789060142,-715.35,0.00022739,3]
[380477358,1755789060160,-480.0,0.00022739,3]
[380477359,1755789060177,-480.0,0.00022739,3]
[380477360,1755789060195,-480.0,0.00022739,3]
[380477361,1755789060211,-480.0,0.00022739,3]
[380477362,1755789060227,-766.89,0.00022739,3]
[380477363,1755789060244,-562.13,0.00022739,3]
[380477364,1755789060257,-619.73,0.00022739,3]
[380477365,1755789060273,-480.0,0.00022739,3]
[380477366,1755789060291,-598.36,0.00022739,3]
[380477367,1755789060308,-480.0,0.00022739,3]
[380477368,1755789060327,-480.0,0.00022739,3]
[380477369,1755789060342,-515.07,0.00022739,3]
[380477370,1755789060354,-1027.95,0.00022739,3]
[380477371,1755789060372,-683.41,0.00022739,3]
[380477372,1755789060387,-500.0,0.00022739,3]
[380477373,1755789060401,-480.0,0.00022739,3]
[380477374,1755789060417,-693.8,0.00022739,3]
[380477375,1755789060430,-480.0,0.00022739,3]
[380477376,1755789060443,-480.0,0.00022739,3]
[380477377,1755789060457,-728.12,0.00022739,3]
[380477378,1755789060470,-480.0,0.00022739,3]
[380477379,1755789060486,-687.09,0.00022739,3]
[380477380,1755789060501,-628.78,0.00022739,3]
[380477381,1755789060515,-480.0,0.00022739,3]
[380477382,1755789060529,-772.79,0.00022739,3]
[380477383,1755789060542,-480.0,0.00022739,3]
[380477384,1755789060556,-1124.11,0.00022739,3]
[380477385,1755789060571,-964.6,0.00022739,3]
[380477386,1755789060585,-480.0,0.00022739,3]
[380477387,1755789060599,-480.0,0.00022739,3]
[380477388,1755789060618,-480.0,0.00022739,3]
[380477389,1755789060632,-480.0,0.00022739,3]
[380477390,1755789060646,-642.98,0.00022739,3]
[380477391,1755789060659,-480.0,0.00022739,3]
[380477392,1755789060673,-480.0,0.00022739,3]
[380477393,1755789060687,-480.0,0.00022739,3]
[380477394,1755789060701,-480.0,0.00022739,3]
[380477395,1755789060714,-648.05,0.00022739,3]
[380477396,1755789060727,-305.23063181,0.00022739,3]
[380477397,1755789060744,-964.31,0.00022739,3]
[380477398,1755789060763,-480.0,0.00022739,3]
[380477399,1755789060777,-784.31,0.00022739,3]
[380477400,1755789060791,-480.0,0.00022739,3]
[380477401,1755789060805,-480.0,0.00022739,3]
[380477402,1755789060818,-511.61,0.00022739,3]
[380477403,1755789060832,-480.0,0.00022739,3]
[380477404,1755789060846,-768.74,0.00022739,3]
[380477405,1755789060859,-480.0,0.00022739,3]
[380477406,1755789060873,-2198.28,0.00022739,3]
[380477407,1755789060886,-480.0,0.00022739,3]
[380477408,1755789060901,-2604.65,0.00022739,3]
[380477409,1755789060914,-480.0,0.00022739,3]
[380477410,1755789060927,-839.68,0.00022739,3]
[380477411,1755789060940,-480.0,0.00022739,3]
[380477412,1755789060954,-2140.84,0.00022739,3]
[380477413,1755789060968,-480.0,0.00022739,3]
[380477414,1755789060981,-480.0,0.00022739,3]
[380477415,1755789060995,-480.0,0.00022739,3]
[380477416,1755789061010,-662.78,0.00022739,3]
[380477417,1755789061023,-480.0,0.00022739,3]
[380477418,1755789061036,-1345.06,0.00022739,3]
[380477419,1755789061046,-480.0,0.00022739,3]
[380477420,1755789061055,-1058.94,0.00022739,3]
[380477421,1755789061065,-576.59,0.00022739,3]
[380477422,1755789061074,-556.07,0.00022739,3]
[380477423,1755789061084,-480.0,0.00022739,3]
[380477424,1755789061094,-480.0,0.00022739,3]
[380477425,1755789061103,-1884.35,0.00022739,3]
[380477426,1755789061113,-480.0,0.00022739,3]
[380477427,1755789061122,-1060.69,0.00022739,3]
[380477428,1755789061132,-602.83,0.00022739,3]
[380477429,1755789061141,-2493.42,0.00022739,3]
[380477430,1755789061151,-480.0,0.00022739,3]
[380477431,1755789061161,-912.2,0.00022739,3]
[380477432,1755789061169,-958.22,0.00022739,3]
[380477433,1755789061179,-936.89,0.00022739,3]
[380477434,1755789061189,-625.91,0.00022739,3]
[380477435,1755789061198,-1577.55,0.00022739,3]
[380477436,1755789061208,-480.0,0.00022739,3]
[380477437,1755789061218,-480.0,0.00022739,3]
[380477438,1755789061228,-2221.72,0.00022739,3]
[380477439,1755789061237,-922.97,0.00022739,3]
[380477440,1755789061248,-480.0,0.00022739,3]
[380477441,1755789061257,-480.0,0.00022739,3]
[380477442,1755789061270,-480.0,0.00022739,3]
[380477443,1755789061279,-788.36,0.00022739,3]
[380477444,1755789061289,-1813.79,0.00022739,3]
[380477445,1755789061299,-480.0,0.00022739,3]
[380477446,1755789061310,-480.0,0.00022739,3]
[380477447,1755789061320,-734.7,0.00022739,3]
[380477448,1755789061330,-480.0,0.00022739,3]
[380477449,1755789061340,-792.44,0.00022739,3]
[380477450,1755789061350,-188.45670929,0.00022739,3]
[380477451,1755789061359,-1248.42,0.00022739,3]
[380477452,1755789061368,-480.0,0.00022739,3]
[380477453,1755789061378,-756.71,0.00022739,3]
[380477454,1755789061388,-480.0,0.00022739,3]
[380477455,1755789061398,-480.0,0.00022739,3]
[380477456,1755789061753,-527.42,0.00022739,3]
[380477457,1755789061772,-480.0,0.00022739,3]
[380477458,1755789061784,-480.0,0.00022739,3]
[380477459,1755789061794,-480.0,0.00022739,3]
[380477460,1755789061803,-1111.35,0.00022739,3]
[380477461,1755789061813,-814.97,0.00022739,3]
[380477462,1755789061823,-564.85,0.00022739,3]
[380477463,1755789061833,-666.16,0.00022739,3]
[380477464,1755789061842,-651.49,0.00022739,3]
[380477465,1755789061852,-1153.78,0.00022739,3]
[380477466,1755789061862,-691.17,0.00022739,3]
[380477467,1755789061872,-480.0,0.00022739,3]
[380477468,1755789061882,-480.0,0.00022739,3]
[380477469,1755789061892,-480.0,0.00022739,3]
[380477470,1755789061901,-1210.39,0.00022739,3]
[380477471,1755789061911,-480.0,0.00022739,3]
[380477472,1755789061921,-2356.99,0.00022739,3]
[380477473,1755789061931,-714.13,0.00022739,3]
[380477474,1755789061940,-480.0,0.00022739,3]
[380477475,1755789061950,-480.0,0.00022739,3]
[380477476,1755789061959,-4962.09,0.00022739,3]
[380477477,1755789061969,-1257.16,0.00022739,3]
[380477478,1755789061979,-480.0,0.00022739,3]
[380477479,1755789061988,-348.12133957,0.00022739,3]
[380477480,1755789062001,-751.37,0.00022739,3]
[380477481,1755789062011,-541.69,0.00022739,3]
[380477482,1755789062020,-1034.49,0.00022739,3]
[380477483,1755789062029,-480.0,0.00022739,3]
[380477484,1755789062039,-823.84,0.00022739,3]
[380477485,1755789062048,-480.0,0.00022739,3]
[380477486,1755789062058,-2554.97,0.00022739,3]
[380477487,1755789062067,-575.07,0.00022739,3]
[380477488,1755789062077,-804.12,0.00022739,3]
[380477489,1755789062086,-2279.03,0.00022739,3]
[380477490,1755789062095,-983.22,0.00022739,3]
[380477491,1755789062105,-480.0,0.00022739,3]
[380477492,1755789062115,-723.45,0.00022739,3]
[380477493,1755789062124,-480.0,0.00022739,3]
[380477494,1755789062134,-480.0,0.00022739,3]
[380477495,1755789062144,-480.0,0.00022739,3]
[380477496,1755789062154,-3325.88,0.00022739,3]
[380477497,1755789062163,-1928.42,0.00022739,3]
[380477498,1755789062172,-5464.66,0.00022739,3]
[380477499,1755789062182,-480.0,0.00022739,3]
[380477500,1755789062191,-480.0,0.00022739,3]
[380477501,1755789062200,-480.0,0.00022739,3]
[380477502,1755789062209,-480.0,0.00022739,3]
[380477503,1755789062219,-480.0,0.00022739,3]
[380477504,1755789062228,-14424.21,0.00022739,3]
[380477505,1755789062237,-383.01729401,0.00022739,3]
[380477506,1755789062251,-480.0,0.00022739,3]
[380477507,1755789062262,-1177.23,0.00022739,3]
[380477508,1755789062276,-480.0,0.00022739,3]
[380477509,1755789062287,-769.08,0.00022739,3]
[380477510,1755789062296,-587.76,0.00022739,3]
[380477511,1755789062306,-4935.04,0.00022739,3]
[380477512,1755789062317,-480.0,0.00022739,3]
[380477513,1755789062328,-1184.81,0.00022739,3]
[380477514,1755789062338,-2603.06,0.00022739,3]
[380477515,1755789062350,-480.0,0.00022739,3]
[380477516,1755789062361,-561.71,0.00022739,3]
[380477517,1755789062372,-322.48162336,0.00022739,3]
[380477518,1755789062382,-480.0,0.00022739,3]
[380477519,1755789062392,-480.0,0.00022739,3]
[380477520,1755789062402,-1024.11,0.00022739,3]
[380477521,1755789062412,-6832.83,0.00022739,3]
[380477522,1755789062422,-555.1508346,0.00022739,3]
[380477523,1755789062431,-480.0,0.00022739,3]
[380477524,1755789062441,-9670.29,0.00022739,3]
[380477525,1755789062450,-480.0,0.00022739,3]
[380477526,1755789062460,-480.0,0.00022739,3]
[380477527,1755789062469,-2069.39,0.00022739,3]
[380477528,1755789062479,-564.67,0.00022739,3]
[380477529,1755789062488,-523.13102575,0.00022739,3]
[380477530,1755789062503,-480.0,0.00022739,3]
[380477531,1755789062513,-1912.91,0.00022739,3]
[380477532,1755789062522,-255.87687401,0.00022739,3]
[380477533,1755789062532,-4899.41,0.00022739,3]
[380477534,1755789062541,-964.21,0.00022739,3]
[380477535,1755789062551,-2638.48,0.00022739,3]
[380477536,1755789062561,-480.0,0.00022739,3]
[380477537,1755789062571,-1162.1,0.00022739,3]
[380477538,1755789062581,-739.44,0.00022739,3]
[380477539,1755789062590,-837.52,0.00022739,3]
[380477540,1755789062600,-754.79,0.00022739,3]
[380477541,1755789062609,-480.0,0.00022739,3]
[380477542,1755789062619,-497.84,0.00022739,3]
[380477543,1755789062629,-480.0,0.00022739,3]
[380477544,1755789062638,-1202.36,0.00022739,3]
[380477545,1755789062647,-611.41,0.00022739,3]
[380477546,1755789062657,-656.61,0.00022739,3]
[380477547,1755789062667,-10927.7,0.00022739,3]